bitfinex/quotes_BTCUSD_20241027
["timestamp","ask_amount","ask_price","bid_price","bid_amount"]
[1729993723670,0.18435064,67041.0,67040.0,0.150806]
[1729993731879,0.22900342,67041.0,67040.0,0.150806]
[1729993733636,0.18435064,67041.0,67040.0,0.150806]
[1729993733880,0.25132981,67041.0,67040.0,0.150806]
[1729993734335,0.18435064,67041.0,67040.0,0.150806]
[1729993735235,0.43914405,67041.0,67040.0,0.150806]
[1729993735458,0.25150426,67041.0,67040.0,0.150806]
[1729993735912,0.34963498,67041.0,67040.0,0.150806]
[1729993736540,0.18435064,67041.0,67040.0,0.150806]
[1729993737852,0.43916595,67041.0,67040.0,0.150806]
[1729993738301,0.34963823,67041.0,67040.0,0.150806]
[1729993738510,0.18435064,67041.0,67040.0,0.150806]
[1729993740523,0.34963793,67041.0,67040.0,0.150806]
[1729993741388,0.18435064,67041.0,67040.0,0.150806]
[1729993741833,0.34964199,67041.0,67040.0,0.150806]
[1729993742072,0.34964255,67041.0,67040.0,0.150806]
[1729993743428,0.34464255,67041.0,67040.0,0.150806]
[1729993743687,0.17935064,67041.0,67040.0,0.150806]
[1729993743917,0.3446489,67041.0,67040.0,0.150806]
[1729993745020,0.43417662,67041.0,67040.0,0.150806]
[1729993745501,0.17935064,67041.0,67040.0,0.150806]
[1729993745707,0.24651782,67041.0,67040.0,0.150806]
[1729993746792,0.24733982,67041.0,67040.0,0.150806]
[1729993747703,0.18017264,67041.0,67040.0,0.150806]
[1729993748143,0.34546921,67041.0,67040.0,0.150806]
[1729993748561,0.18017264,67041.0,67040.0,0.150806]
[1729993749506,0.24734014,67041.0,67040.0,0.150806]
[1729993749742,0.18017264,67041.0,67040.0,0.150806]
[1729993750420,0.34547007,67041.0,67040.0,0.150806]
[1729993751791,0.43499779,67041.0,67040.0,0.150806]
[1729993752051,0.45062118,67041.0,67040.0,0.001642]
[1729993752254,0.59978318,67041.0,67040.0,0.001642]
[1729993752476,0.58491276,67041.0,67040.0,0.001642]
[1729993752685,0.45062118,67041.0,67040.0,0.001642]
[1729993752897,0.58491276,67041.0,67040.0,0.001642]
[1729993753116,0.88457857,67041.0,67040.0,0.001642]
[1729993753335,0.75028699,67041.0,67040.0,0.001642]
[1729993753749,0.79597535,67041.0,67040.0,0.001642]
[1729993754383,0.75228699,67041.0,67040.0,0.001642]
[1729993754593,0.75028699,67041.0,67040.0,0.001642]
[1729993755848,0.84866355,67041.0,67040.0,0.001642]
[1729993756490,0.98278901,67041.0,67040.0,0.001642]
[1729993757394,0.48137008,67041.0,67040.0,0.001642]
[1729993757642,0.48137008,67041.0,67040.0,0.150806]
[1729993757643,0.34724462,67041.0,67040.0,0.150806]
[1729993758101,0.43663223,67041.0,67040.0,0.150806]
[1729993758326,0.00964619,67041.0,67040.0,0.150806]
[1729993758535,0.05433851,67041.0,67040.0,0.150806]
[1729993761115,0.05433731,67041.0,67040.0,0.150806]
[1729993761572,0.00964619,67041.0,67040.0,0.150806]
[1729993763345,0.10802275,67041.0,67040.0,0.150806]
[1729993765109,0.38039931,67041.0,67040.0,0.001642]
[1729993765343,0.69455402,67041.0,67040.0,0.001642]
[1729993765551,0.44701546,67041.0,67040.0,0.001642]
[1729993766441,0.54539202,67041.0,67040.0,0.001642]
[1729993766671,0.44701546,67041.0,67040.0,0.001642]
[1729993768860,0.55873044,67041.0,67040.0,0.001642]
[1729993770361,0.55868596,67041.0,67040.0,0.001642]
[1729993770584,0.55868596,67041.0,67040.0,0.150806]
[1729993771907,0.44697337,67041.0,67040.0,0.150806]
[1729993772120,0.55868461,67041.0,67040.0,0.150806]
[1729993772341,0.44697337,67041.0,67040.0,0.150806]
[1729993774748,0.44697337,67041.0,67040.0,0.001642]
[1729993775293,0.44696976,67041.0,67040.0,0.001642]
[1729993775493,0.44696976,67041.0,67040.0,0.150806]
[1729993777410,0.44696976,67041.0,67040.0,0.001642]
[1729993777632,0.5586799,67041.0,67040.0,0.150806]
[1729993777845,0.44696976,67041.0,67040.0,0.150806]
[1729993778272,0.44696976,67041.0,67040.0,0.150969]
[1729993778480,0.5586799,67041.0,67040.0,0.150969]
[1729993779352,0.46030334,67041.0,67040.0,0.150969]
[1729993779777,0.3485932,67041.0,67040.0,0.150969]
[1729993779991,0.26396999,67041.0,67040.0,0.150969]
[1729993780484,0.05433254,67041.0,67040.0,0.150969]
[1729993780722,0.05433321,67041.0,67040.0,0.150969]
[1729993780929,0.05433341,67041.0,67040.0,0.150969]
[1729993781147,0.05433339,67041.0,67040.0,0.150969]
[1729993781356,0.00964619,67041.0,67040.0,0.150969]
[1729993782067,0.05433496,67041.0,67040.0,0.150969]
[1729993783382,0.00964619,67041.0,67040.0,0.150969]
[1729993783598,0.05433726,67041.0,67040.0,0.150969]
[1729993784028,0.00964619,67041.0,67040.0,0.150969]
[1729993784236,0.05433773,67041.0,67040.0,0.150969]
[1729993784459,0.00964619,67041.0,67040.0,0.150969]
[1729993788131,0.05434294,67041.0,67040.0,0.150969]
[1729993789224,0.05434415,67041.0,67040.0,0.150969]
[1729993791432,0.00964619,67041.0,67040.0,0.150969]
[1729993791766,0.05434864,67041.0,67040.0,0.150969]
[1729993793060,0.00964619,67041.0,67040.0,0.150969]
[1729993793376,0.05434864,67041.0,67040.0,0.150969]
[1729993793604,0.00964619,67041.0,67040.0,0.150969]
[1729993794496,0.00787164,67041.0,67040.0,0.249969]
[1729993794733,0.000822,67041.0,67040.0,0.249969]
[1729993795770,0.00761474,67041.0,67040.0,0.249969]
[1729993795942,0.02159108,67041.0,67040.0,0.249969]
[1729993796150,0.01479834,67041.0,67040.0,0.249969]
[1729993796351,0.02159108,67041.0,67040.0,0.249969]
[1729993798839,0.01479834,67041.0,67040.0,0.249969]
[1729993799049,0.000822,67041.0,67040.0,0.249969]
[1729993799576,0.01479834,67041.0,67040.0,0.249969]
[1729993799786,0.000822,67041.0,67040.0,0.249969]
[1729993800412,0.01479624,67041.0,67040.0,0.249969]
[1729993801047,0.000822,67041.0,67040.0,0.249969]
[1729993801251,0.00729947,67041.0,67040.0,0.249969]
[1729993801458,0.01479624,67041.0,67040.0,0.249969]
[1729993801688,0.02127371,67041.0,67040.0,0.249969]
[1729993802760,0.01479624,67041.0,67040.0,0.150969]
[1729993802972,0.02098027,67041.0,67040.0,0.150969]
[1729993803175,0.01479624,67041.0,67040.0,0.150969]
[1729993803607,0.02098037,67041.0,67040.0,0.150969]
[1729993806075,0.00700613,67041.0,67040.0,0.150969]
[1729993806300,0.02098269,67041.0,67040.0,0.150969]
[1729993806956,0.01479856,67041.0,67040.0,0.150969]
[1729993807173,0.000822,67041.0,67040.0,0.150969]
[1729993807599,0.01480056,67041.0,67040.0,0.150969]
[1729993810125,0.000822,67041.0,67040.0,0.150969]
[1729993810540,0.00700608,67041.0,67040.0,0.150969]
[1729993810721,0.000822,67041.0,67040.0,0.150969]
[1729993810958,0.00700608,67041.0,67040.0,0.150969]
[1729993811155,0.000822,67041.0,67040.0,0.150969]
[1729993811561,0.00700608,67041.0,67040.0,0.150969]
[1729993811779,0.000822,67041.0,67040.0,0.150969]
[1729993811986,0.00700578,67041.0,67040.0,0.150969]
[1729993815191,0.02099129,67041.0,67040.0,0.150969]
[1729993818051,0.00700578,67041.0,67040.0,0.150969]
[1729993818260,0.02099399,67041.0,67040.0,0.150969]
[1729993818471,0.0349822,67041.0,67040.0,0.150969]
[1729993820469,0.06571561,67041.0,67040.0,0.150969]
[1729993821757,0.0517274,67041.0,67040.0,0.150969]
[1729993821940,0.06571868,67041.0,67040.0,0.150969]
[1729993823486,0.02099706,67041.0,67040.0,0.150969]
[1729993825486,0.08807949,67041.0,67040.0,0.150969]
[1729993826715,0.02099706,67041.0,67040.0,0.150969]
[1729993831549,0.18621501,67041.0,67040.0,0.150969]
[1729993831904,0.18837718,67041.0,67040.0,0.150969]
[1729993832105,0.02315923,67041.0,67040.0,0.150969]
[1729993832474,0.11267397,67041.0,67040.0,0.150969]
[1729993832695,0.27790188,67041.0,67040.0,0.150969]
[1729993832885,0.2779053,67041.0,67040.0,0.150969]
[1729993835208,0.18840592,67041.0,67040.0,0.150969]
[1729993835639,0.27793598,67041.0,67040.0,0.150969]
[1729993836329,0.18840592,67041.0,67040.0,0.150969]
[1729993836764,0.27793833,67041.0,67040.0,0.150969]
[1729993838271,0.18840592,67041.0,67040.0,0.150969]
[1729993839602,0.18840509,67041.0,67040.0,0.150969]
[1729993840253,0.17441122,67041.0,67040.0,0.150969]
[1729993840466,0.18840509,67041.0,67040.0,0.150969]
[1729993841733,0.2779427,67041.0,67040.0,0.150969]
[1729993842144,0.02316182,67041.0,67040.0,0.150969]
[1729993842355,0.0903136,67041.0,67040.0,0.150969]
[1729993842564,0.06792896,67041.0,67040.0,0.249269]
[1729993842773,0.02316182,67041.0,67040.0,0.249269]
[1729993843008,0.02316182,67041.0,67040.0,0.329069]
[1729993845002,0.01481587,67041.0,67040.0,0.329069]
[1729993846606,0.02315836,67041.0,67040.0,0.329069]
[1729993847477,0.02314941,67041.0,67040.0,0.329069]
[1729993848099,0.02314941,67041.0,67040.0,0.150969]
[1729993848302,0.16629311,67041.0,67040.0,0.150969]
[1729993848514,0.02314941,67041.0,67040.0,0.150969]
[1729993848719,0.11268702,67041.0,67040.0,0.150969]
[1729993848920,0.27790413,67041.0,67040.0,0.150969]
[1729993849115,0.27788097,67041.0,67040.0,0.150969]
[1729993849983,0.18836652,67041.0,67040.0,0.150969]
[1729993850150,0.27788003,67041.0,67040.0,0.150969]
[1729993851235,0.18836652,67041.0,67040.0,0.150969]
[1729993851743,0.27788003,67041.0,67040.0,0.150969]
[1729993853197,0.18836652,67041.0,67040.0,0.150969]
[1729993853404,0.02314941,67041.0,67040.0,0.150969]
[1729993853624,0.18835721,67041.0,67040.0,0.150969]
[1729993855435,0.02314941,67041.0,67040.0,0.150969]
[1729993855668,0.09028431,67041.0,67040.0,0.150969]
[1729993856122,0.02314941,67041.0,67040.0,0.150969]
[1729993856347,0.09028398,67041.0,67040.0,0.150969]
[1729993856753,0.02314941,67041.0,67040.0,0.150969]
[1729993857059,0.09028458,67041.0,67040.0,0.150969]
[1729993858842,0.27787381,67041.0,67040.0,0.150969]
[1729993860216,0.02314941,67041.0,67040.0,0.150969]
[1729993860853,0.11265882,67041.0,67040.0,0.150969]
[1729993861074,0.11265841,67041.0,67040.0,0.150969]
[1729993861534,0.27787423,67041.0,67040.0,0.150969]
[1729993861750,0.27787735,67041.0,67040.0,0.150969]
[1729993862444,0.09028209,67041.0,67040.0,0.150969]
[1729993864427,0.09028159,67041.0,67040.0,0.150969]
[1729993867017,0.0231485,67041.0,67040.0,0.150969]
[1729993867612,0.09028188,67041.0,67040.0,0.150969]
[1729993867956,0.09028248,67041.0,67040.0,0.150969]
[1729993868932,0.0231491,67041.0,67040.0,0.150969]
[1729993869146,0.1883636,67041.0,67040.0,0.150969]
[1729993869302,0.0231491,67041.0,67040.0,0.150969]
[1729993869510,0.18836157,67041.0,67040.0,0.150969]
[1729993869950,0.0231491,67041.0,67040.0,0.150969]
[1729993870392,0.00916449,67041.0,67040.0,0.150969]
[1729993870602,0.09028348,67041.0,67040.0,0.150969]
[1729993871870,0.07629851,67041.0,67040.0,0.150969]
[1729993872082,0.09028311,67041.0,67040.0,0.150969]
[1729993872964,0.10426747,67041.0,67040.0,0.150969]
[1729993873183,0.09028311,67041.0,67040.0,0.150969]
[1729993873816,0.02314909,67041.0,67040.0,0.150969]
[1729993874226,0.02314939,67041.0,67040.0,0.150969]
[1729993875358,0.06790564,67041.0,67040.0,0.248369]
[1729993875591,0.02314939,67041.0,67040.0,0.248369]
[1729993876045,0.0148069,67041.0,67040.0,0.248369]
[1729993879598,0.0148069,67041.0,67040.0,0.150969]
[1729993880383,0.02314549,67041.0,67040.0,0.150969]
[1729993880631,0.0148069,67041.0,67040.0,0.150969]
[1729993882051,0.01480723,67041.0,67040.0,0.150969]
[1729993882318,0.02314857,67041.0,67040.0,0.150969]
[1729993887858,0.01480723,67041.0,67040.0,0.150969]
[1729993888081,0.02276563,67041.0,67040.0,0.150969]
[1729993889050,0.0087804,67041.0,67040.0,0.150969]
[1729993889263,0.02276497,67041.0,67040.0,0.150969]
[1729993891533,0.01480657,67041.0,67040.0,0.150969]
[1729993891742,0.02276582,67041.0,67040.0,0.150969]
[1729993892154,0.01480657,67041.0,67040.0,0.150969]
[1729993899893,0.000822,67041.0,67040.0,0.150969]
[1729993900111,0.01481072,67041.0,67040.0,0.150969]
[1729993901893,0.02276907,67041.0,67040.0,0.247469]
[1729993902116,0.01481072,67041.0,67040.0,0.247469]
[1729993902346,0.01481072,67041.0,67040.0,0.150969]
[1729993909360,0.01481072,67041.0,67040.0,0.47977281]
[1729993909781,0.000822,67041.0,67040.0,0.47977281]
[1729993933089,0.000822,67041.0,67040.0,0.57814937]
[1729993933331,0.000822,67041.0,67040.0,0.57357281]
[1729993933546,0.000822,67041.0,67040.0,0.67194937]
[1729993934452,0.000822,67041.0,67040.0,0.57357281]
[1729993934906,0.000822,67041.0,67040.0,0.67194937]
[1729993935985,0.000822,67041.0,67040.0,0.57357281]
[1729993943745,0.000822,67041.0,67040.0,0.67194937]
[1729993944178,0.000822,67041.0,67040.0,0.57357281]
[1729993951843,0.000822,67041.0,67040.0,0.57679826]
[1729993953126,0.000822,67041.0,67040.0,0.58679826]
[1729993953341,0.000822,67041.0,67040.0,0.70817482]
[1729993953566,0.000822,67041.0,67040.0,0.7750842]
[1729993954069,0.000822,67041.0,67040.0,0.92057058]
[1729993954695,0.000822,67041.0,67040.0,0.77706219]
[1729993955618,0.000822,67041.0,67040.0,0.71017482]
[1729993956054,0.000822,67041.0,67040.0,0.92214084]
[1729993956894,0.000822,67041.0,67040.0,0.77706219]
[1729993957747,1e-06,67041.0,67040.0,0.9220655]
[1729993958596,1e-06,67041.0,67040.0,0.77706219]
[1729993958802,1e-06,67041.0,67040.0,0.85498231]
[1729993960568,1e-06,67041.0,67040.0,0.92181028]
[1729993961207,1e-06,67041.0,67040.0,0.92180293]
[1729993961414,1e-06,67041.0,67040.0,0.92180287]
[1729993962348,0.0985,67064.0,67047.0,0.16237445]
[1729993962585,0.0985,67064.0,67062.0,0.24749156]
[1729993962835,0.0985,67064.0,67062.0,0.34749156]
[1729993963066,0.00169,67063.0,67062.0,0.34749156]
[1729993963906,0.00169,67063.0,67062.0,0.249115]
[1729993964111,0.00169,67063.0,67062.0,0.34749156]
[1729993966955,0.00169,67063.0,67062.0,0.249115]
[1729993967603,0.00169,67063.0,67062.0,0.39961881]
[1729993970442,0.00169,67063.0,67062.0,0.49799537]
[1729993976710,0.00169,67063.0,67062.0,0.249115]
[1729993976956,0.17729,67063.0,67062.0,0.249115]
[1729993978021,0.00169,67063.0,67062.0,0.249115]
[1729993982467,0.00169,67063.0,67062.0,0.39961881]
[1729993986235,0.00169,67063.0,67062.0,0.41136431]
[1729993991726,0.00169,67063.0,67062.0,0.53774087]
[1729993991948,0.00169,67063.0,67062.0,0.43936431]
[1729993993564,0.00169,67063.0,67062.0,0.44532631]
[1729993994429,0.00169,67063.0,67062.0,0.65122832]
[1729993994639,0.00169,67063.0,67062.0,0.72882832]
[1729993995324,0.00169,67063.0,67062.0,0.63045176]
[1729993995982,0.00169,67063.0,67062.0,0.73082832]
[1729993996213,0.00169,67063.0,67062.0,0.72882832]
[1729993996450,0.00169,67063.0,67062.0,0.73082832]
[1729993997316,0.00169,67063.0,67062.0,0.72882832]
[1729993997759,0.00169,67063.0,67062.0,0.63045176]
[1729993998397,0.00169,67063.0,67062.0,0.72882832]
[1729993999738,0.00169,67063.0,67062.0,0.63045176]
[1729994000455,0.00169,67063.0,67062.0,0.72882832]
[1729994004818,0.00169,67063.0,67062.0,0.82720488]
[1729994005037,0.00169,67063.0,67062.0,0.82920488]
[1729994005943,0.00169,67063.0,67062.0,0.82720488]
[1729994007441,0.00169,67063.0,67062.0,0.82920488]
[1729994007889,0.00169,67063.0,67062.0,0.82720488]
[1729994014182,0.00169,67063.0,67062.0,0.82920488]
[1729994014415,0.00169,67067.0,67066.0,0.46323145]
[1729994014664,0.00169,67067.0,67066.0,0.91086494]
[1729994014896,0.00169,67067.0,67066.0,0.81048838]
[1729994015130,0.00169,67067.0,67066.0,0.85497033]
[1729994015356,0.00169,67067.0,67066.0,0.81048838]
[1729994016906,0.00169,67067.0,67066.0,0.85497033]
[1729994017559,0.00169,67067.0,67066.0,0.81048838]
[1729994018003,0.00169,67067.0,67066.0,0.53421182]
[1729994019178,0.00169,67067.0,67066.0,0.51121182]
[1729994024631,0.00169,67067.0,67066.0,0.60958838]
[1729994027718,0.00169,67067.0,67066.0,0.63258838]
[1729994028148,0.17769,67077.0,67071.0,0.00322545]
[1729994028402,0.17769,67077.0,67076.0,0.34746056]
[1729994028620,0.17769,67077.0,67076.0,0.49796437]
[1729994030789,0.178512,67077.0,67076.0,0.49796437]
[1729994033390,0.178512,67077.0,67076.0,0.50992984]
[1729994035649,0.000822,67077.0,67076.0,0.50992984]
[1729994040158,0.000822,67077.0,67076.0,0.41155328]
[1729994040363,0.000822,67077.0,67076.0,0.50992984]
[1729994055568,0.000822,67077.0,67076.0,0.78467385]
[1729994055795,0.000822,67077.0,67076.0,0.68629729]
[1729994056011,0.000822,67077.0,67076.0,0.59069729]
[1729994056226,0.000822,67077.0,67076.0,0.51479729]
[1729994056449,0.000822,67077.0,67076.0,0.61317385]
[1729994056678,0.00169,67084.0,67083.0,0.46597101]
[1729994056916,0.00169,67084.0,67083.0,0.61647482]
[1729994057141,0.00169,67084.0,67083.0,0.51809826]
[1729994057348,0.00169,67084.0,67083.0,0.61647482]
[1729994057997,0.00169,67084.0,67083.0,0.53417482]
[1729994061004,0.00169,67084.0,67083.0,0.54575886]
[1729994094929,0.00169,67084.0,67083.0,0.59019359]
[1729994095729,0.00169,67084.0,67083.0,0.59022272]
[1729994097532,0.00169,67084.0,67083.0,0.54575886]
[1729994097735,0.00169,67084.0,67083.0,0.61245465]
[1729994098149,0.00169,67084.0,67083.0,0.54575886]
[1729994098571,0.00169,67084.0,67083.0,0.61245465]
[1729994098773,0.00169,67084.0,67083.0,0.7696226]
[1729994099623,0.00169,67084.0,67083.0,0.70292681]
[1729994100538,0.00169,67084.0,67083.0,0.7919485]
[1729994101624,0.00169,67084.0,67083.0,0.70295997]
[1729994102298,0.00169,67084.0,67083.0,0.79198699]
[1729994102536,0.00169,67084.0,67083.0,0.81419564]
[1729994102760,0.00169,67084.0,67083.0,0.71581908]
[1729994102993,0.17449,67084.0,67083.0,0.6351618]
[1729994103242,0.17449,67084.0,67083.0,0.45569778]
[1729994103455,0.17449,67084.0,67083.0,0.41115685]
[1729994103456,0.18216779,67084.0,67083.0,0.41115685]
[1729994103674,0.17449,67084.0,67083.0,0.41115685]
[1729994104114,0.18846876,67084.0,67083.0,0.39957281]
[1729994104325,0.17449,67084.0,67083.0,0.39957281]
[1729994104548,0.17449,67084.0,67083.0,0.29957281]
[1729994104549,0.18846354,67084.0,67083.0,0.29957281]
[1729994105272,0.17449,67084.0,67083.0,0.29957281]
[1729994105703,0.17449,67084.0,67083.0,0.39957281]
[1729994111781,0.17626455,67084.0,67083.0,0.149069]
[1729994111984,0.19022212,67084.0,67083.0,0.149069]
[1729994112236,0.1978964,67084.0,67083.0,0.149069]
[1729994113402,0.17457455,67078.0,67077.0,0.150724]
[1729994113622,0.2869007,67078.0,67077.0,0.150724]
[1729994113839,0.29456502,67078.0,67077.0,0.150724]
[1729994114277,0.29956502,67078.0,67077.0,0.001642]
[1729994114504,0.20118846,67078.0,67077.0,0.001642]
[1729994120653,0.20114988,67078.0,67077.0,0.001642]
[1729994120899,0.20114988,67078.0,67077.0,0.150724]
[1729994122504,0.19614988,67078.0,67077.0,0.150724]
[1729994123657,0.18305987,67078.0,67077.0,0.150724]
[1729994124331,0.19696774,67078.0,67077.0,0.150724]
[1729994125885,0.18305987,67078.0,67077.0,0.150724]
[1729994126095,0.19697044,67078.0,67077.0,0.150724]
[1729994126728,0.18305987,67078.0,67077.0,0.150724]
[1729994127378,0.19697186,67078.0,67077.0,0.150724]
[1729994128371,0.19697371,67078.0,67077.0,0.150724]
[1729994130065,0.36247752,67078.0,67077.0,0.001642]
[1729994130284,0.51155752,67078.0,67077.0,0.001642]
[1729994130982,0.61440338,67078.0,67077.0,0.001642]
[1729994131193,0.51355752,67078.0,67077.0,0.001642]
[1729994131416,0.34215655,67077.0,67076.0,0.00137805]
[1729994131621,0.60295076,67077.0,67076.0,0.00137805]
[1729994131831,0.61022115,67077.0,67076.0,0.00137805]
[1729994133634,0.49793075,67077.0,67076.0,0.00137805]
[1729994133853,0.61023631,67077.0,67076.0,0.00137805]
[1729994134705,0.61223631,67077.0,67076.0,0.00137805]
[1729994136678,0.61023631,67077.0,67076.0,0.00137805]
[1729994136901,0.61023732,67077.0,67076.0,0.00137805]
[1729994137318,0.61423732,67077.0,67076.0,0.00137805]
[1729994137938,0.61523732,67077.0,67076.0,0.00137805]
[1729994138158,0.61223732,67077.0,67076.0,0.00137805]
[1729994138520,0.61023732,67077.0,67076.0,0.00137805]
[1729994139111,0.61123732,67077.0,67076.0,0.00137805]
[1729994139975,0.51386076,67077.0,67076.0,0.00137805]
[1729994140183,0.61223732,67077.0,67076.0,0.00137805]
[1729994140587,0.61123732,67077.0,67076.0,0.00137805]
[1729994141211,0.61323732,67077.0,67076.0,0.00137805]
[1729994146350,0.01677455,67068.0,67067.0,0.149102]
[1729994146562,0.03070456,67068.0,67067.0,0.149102]
[1729994147719,0.03072955,67068.0,67067.0,0.149102]
[1729994148312,0.03792221,67068.0,67067.0,0.149102]
[1729994155555,0.03792221,67068.0,67065.0,0.298215]
[1729994155762,0.00177455,67066.0,67065.0,0.447324]
[1729994155973,0.01572955,67066.0,67065.0,0.447324]
[1729994156188,0.02291912,67066.0,67065.0,0.447324]
[1729994157911,0.01572955,67066.0,67065.0,0.447324]
[1729994158128,0.02292008,67066.0,67065.0,0.447324]
[1729994160602,0.02292008,67066.0,67065.0,0.149109]
[1729994161821,0.00896508,67066.0,67065.0,0.149109]
[1729994162023,0.02295624,67066.0,67065.0,0.149109]
[1729994163662,0.04534213,67066.0,67065.0,0.149109]
[1729994164737,0.0453422,67066.0,67065.0,0.149109]
[1729994165164,0.02295628,67066.0,67065.0,0.149109]
[1729994165939,0.02295628,67066.0,67060.0,0.298236]
[1729994166150,0.00896508,67066.0,67065.0,0.149109]
[1729994166334,0.02295618,67066.0,67065.0,0.149109]
[1729994168211,0.00896508,67066.0,67065.0,0.149109]
[1729994168425,0.02295618,67066.0,67065.0,0.149109]
[1729994169692,0.02295618,67066.0,67065.0,0.150753]
[1729994170328,0.02295618,67066.0,67065.0,0.001644]
[1729994170690,0.06759523,67066.0,67065.0,0.150753]
[1729994171844,0.05360413,67066.0,67065.0,0.150753]
[1729994172018,0.06759581,67066.0,67065.0,0.001644]
[1729994172430,0.02295676,67066.0,67065.0,0.001644]
[1729994172635,0.08991534,67066.0,67065.0,0.001644]
[1729994173487,0.02295676,67066.0,67065.0,0.001644]
[1729994174564,0.27733698,67066.0,67065.0,0.001644]
[1729994175423,0.27733698,67066.0,67065.0,0.150753]
[1729994175662,0.13455439,67066.0,67065.0,0.150753]
[1729994175881,0.29965651,67066.0,67065.0,0.150753]
[1729994176086,0.29965651,67066.0,67065.0,0.001644]
[1729994176286,0.29965651,67066.0,67065.0,0.150753]
[1729994176704,0.18805888,67066.0,67065.0,0.150753]
[1729994177121,0.18805888,67066.0,67065.0,0.001644]
[1729994179228,0.1740672,67066.0,67065.0,0.001644]
[1729994179432,0.1880591,67066.0,67065.0,0.001644]
[1729994180584,0.18823456,67066.0,67065.0,0.001644]
[1729994180771,0.18823456,67066.0,67065.0,0.150753]
[1729994181899,0.18823456,67066.0,67065.0,0.001644]
[1729994183374,0.21062167,67066.0,67065.0,0.001644]
[1729994185177,0.21062211,67066.0,67065.0,0.001644]
[1729994185383,0.21062211,67066.0,67064.0,0.00376247]
[1729994185384,0.00677455,67065.0,67064.0,0.00376247]
[1729994185606,0.35754058,67065.0,67064.0,0.00376247]
[1729994185817,0.36472684,67065.0,67064.0,0.00376247]
[1729994186686,0.21561784,67065.0,67064.0,0.00376247]
[1729994188683,0.19323073,67065.0,67064.0,0.00376247]
[1729994188916,0.17923883,67065.0,67064.0,0.00376247]
[1729994189138,0.2156051,67065.0,67064.0,0.00376247]
[1729994189427,0.21560534,67065.0,67064.0,0.00376247]
[1729994190698,0.17923883,67065.0,67064.0,0.00376247]
[1729994190944,0.21560347,67065.0,67064.0,0.00376247]
[1729994192015,0.17923883,67065.0,67064.0,0.00376247]
[1729994192228,0.21560251,67065.0,67064.0,0.00376247]
[1729994192441,0.21560251,67065.0,67064.0,0.00540647]
[1729994194321,0.17923883,67065.0,67064.0,0.00540647]
[1729994194556,0.21560087,67065.0,67064.0,0.00540647]
[1729994197996,0.17923883,67065.0,67064.0,0.15451747]
[1729994198212,0.21560025,67065.0,67064.0,0.15451747]
[1729994200849,0.19322399,67065.0,67064.0,0.15451747]
[1729994203425,0.19314958,67065.0,67064.0,0.15451747]
[1729994204297,0.19314958,67065.0,67064.0,0.25289403]
[1729994204298,0.30003362,67065.0,67064.0,0.25289403]
[1729994204572,0.30003041,67065.0,67064.0,0.15451747]
[1729994204837,0.11327048,67065.0,67064.0,0.15451747]
[1729994205264,0.11326932,67065.0,67064.0,0.15451747]
[1729994205483,0.04614265,67065.0,67064.0,0.15451747]
[1729994205906,0.11326932,67065.0,67064.0,0.15451747]
[1729994206993,0.04614265,67065.0,67064.0,0.15451747]
[1729994208558,0.11326932,67065.0,67064.0,0.15451747]
[1729994208783,0.07690948,67065.0,67064.0,0.15451747]
[1729994209006,0.11325831,67065.0,67064.0,0.15451747]
[1729994209916,0.04613164,67065.0,67064.0,0.15451747]
[1729994211376,0.11324438,67065.0,67064.0,0.15451747]
[1729994212229,0.04613164,67065.0,67064.0,0.15451747]
[1729994212652,0.00978281,67065.0,67064.0,0.15451747]
[1729994212865,0.04612647,67065.0,67064.0,0.15451747]
[1729994213303,0.11323549,67065.0,67064.0,0.15451747]
[1729994214390,0.04612647,67065.0,67064.0,0.15451747]
[1729994214620,0.11323543,67065.0,67064.0,0.15451747]
[1729994214829,0.10604917,67065.0,67064.0,0.15451747]
[1729994215043,0.11323333,67065.0,67064.0,0.15451747]
[1729994216385,0.07688967,67065.0,67064.0,0.15451747]
[1729994216601,0.11323265,67065.0,67064.0,0.15451747]
[1729994220033,0.11323508,67065.0,67064.0,0.15451747]
[1729994221137,0.11323193,67065.0,67064.0,0.15451747]
[1729994221577,0.11323255,67065.0,67064.0,0.15451747]
[1729994222018,0.11323255,67065.0,67064.0,0.00540647]
[1729994222019,0.3007432,67065.0,67064.0,0.00540647]
[1729994222235,0.21126879,67065.0,67064.0,0.00540647]
[1729994222437,0.3231118,67065.0,67064.0,0.15451747]
[1729994223974,0.30074501,67065.0,67064.0,0.15451747]
[1729994224688,0.30074501,67065.0,67064.0,0.00540647]
[1729994225117,0.30075456,67065.0,67064.0,0.00540647]
[1729994225527,0.18890816,67065.0,67064.0,0.00540647]
[1729994226163,0.18890988,67065.0,67064.0,0.00540647]
[1729994227214,0.13560839,67065.0,67064.0,0.00540647]
[1729994227634,0.3007566,67065.0,67064.0,0.00540647]
[1729994229568,0.4548656,67065.0,67064.0,0.00540647]
[1729994229767,0.29228644,67065.0,67064.0,0.00540647]
[1729994230364,0.44139544,67065.0,67064.0,0.00540647]
[1729994230816,0.38408644,67065.0,67064.0,0.00540647]
[1729994231033,0.53319544,67065.0,67064.0,0.00540647]
[1729994231488,0.38408644,67065.0,67064.0,0.00540647]
[1729994233593,0.53319209,67065.0,67064.0,0.00540647]
[1729994234485,0.38406649,67065.0,67064.0,0.00540647]
[1729994235185,0.6836793,67065.0,67064.0,0.00540647]
[1729994239166,0.68365585,67065.0,67064.0,0.00540647]
[1729994239628,0.53454685,67065.0,67064.0,0.00540647]
[1729994239868,0.54798746,67065.0,67064.0,0.00540647]
[1729994240092,0.34437029,67065.0,67064.0,0.15451747]
[1729994240313,0.28331572,67065.0,67064.0,0.15451747]
[1729994240959,0.28331336,67065.0,67064.0,0.15451747]
[1729994241868,0.28331336,67065.0,67064.0,0.00540647]
[1729994242101,0.28331336,67065.0,67064.0,0.15451747]
[1729994242102,0.19386412,67065.0,67064.0,0.15451747]
[1729994243054,0.11820619,67065.0,67064.0,0.15451747]
[1729994243531,0.19386412,67065.0,67064.0,0.15451747]
[1729994244225,0.30568129,67065.0,67064.0,0.15451747]
[1729994244437,0.19386412,67065.0,67064.0,0.15451747]
[1729994245611,0.19385579,67065.0,67064.0,0.15451747]
[1729994246280,0.11820627,67065.0,67064.0,0.15451747]
[1729994246540,0.1405696,67065.0,67064.0,0.15451747]
[1729994247002,0.30566943,67065.0,67064.0,0.15451747]
[1729994247689,0.19385579,67065.0,67064.0,0.15451747]
[1729994248378,0.3056751,67065.0,67064.0,0.15451747]